Workbook

Sheet 収益性分析
B2: 顧客の収益性分析
B3: 2013.1.13 | D3: 会社名
B6: 顧客の動き | C6: 顧客 1 | D6: 顧客 2 | E6: 顧客 3 | F6: 全体
B7: 現在の顧客数 — 期首 | C7: 150 | D7: 240 | E7: 240 | F7: =SUM(C7:E7) -> 630
B8: 追加顧客数 | C8: 60 | D8: 120 | E8: 120 | F8: =SUM(C8:E8) -> 300
B9: 解約顧客数 | C9: (30) | D9: (60) | E9: (60) | F9: (150)
B10: 現在の顧客数 — 期末 | C10: =SUBTOTAL(109,収益性分析!$C$7:$C$9) -> 180 | D10: =SUBTOTAL(109,収益性分析!$D$7:$D$9) -> 300 | E10: =SUBTOTAL(109,収益性分析!$E$7:$E$9) -> 300 | F10: 780
B12: 収益性分析
B13: セグメントごとの収益 | C13: =[1]Sheet1!E7 -> ¥45,000,000 | D13: =[1]Sheet1!F7 -> ¥54,000,000 | E13: =[1]Sheet1!G7 -> ¥75,000,000 | F13: =SUM(収益性分析!$C13:$E13) -> ¥174,000,000
B14: 重み付け | C14: =C13/$F$13 -> 25.9% | D14: =D13/$F$13 -> 31.0% | E14: 43.1% | F14: =SUM(C14:E14) -> 100.0%
B16: 売上原価
B17: 進行中のサービスおよびサポートのコスト | C17: ¥30,000,000 | D17: ¥42,000,000 | E17: ¥42,000,000 | F17: =SUM(収益性分析!$C17:$E17) -> ¥114,000,000
B18: その他の直接顧客コスト | C18: 6,000,000 | D18: 3,000,000 | E18: 3,000,000 | F18: =SUM(収益性分析!$C18:$E18) -> 12,000,000
B19: 売上原価合計 | C19: =SUBTOTAL(109,収益性分析!$C$17:$C$18) -> 36,000,000 | D19: =SUBTOTAL(109,収益性分析!$D$17:$D$18) -> 45,000,000 | E19: =SUBTOTAL(109,収益性分析!$E$17:$E$18) -> 45,000,000 | F19: =SUBTOTAL(109,収益性分析!$F$17:$F$18) -> 126,000,000
B20: 粗利益 | C20: =C13-収益性分析!$C$19 -> ¥9,000,000 | D20: =D13-収益性分析!$D$19 -> ¥9,000,000 | E20: =E13-収益性分析!$E$19 -> ¥30,000,000 | F20: =F13-収益性分析!$F$19 -> ¥48,000,000
B21: 重み付け | C21: =MAX(0,MIN(1,C20/$F$20)) -> 18.8% | D21: =MAX(0,MIN(1,D20/$F$20)) -> 18.8% | E21: 62.5% | F21: =SUM(収益性分析!$C21:$E21) -> 100.0%
B23: その他の費用
B24: 顧客獲得 | C24: ¥3,150,000 | D24: ¥3,600,000 | E24: ¥7,050,000 | F24: =SUM(収益性分析!$C24:$E24) -> ¥13,800,000
B25: 顧客マーケティング | C25: 4,500,000 | D25: 3,750,000 | E25: 8,250,000 | F25: =SUM(収益性分析!$C25:$E25) -> ¥16,500,000
B26: 顧客の解約 | C26: 2,400,000 | D26: 5,700,000 | E26: 4,200,000 | F26: =SUM(収益性分析!$C26:$E26) -> ¥12,300,000
B27: その他の顧客の総コスト | C27: =SUBTOTAL(109,収益性分析!$C$24:$C$26) -> 10,050,000 | D27: =SUBTOTAL(109,収益性分析!$D$24:$D$26) -> 13,050,000 | E27: =SUBTOTAL(109,収益性分析!$E$24:$E$26) -> 19,500,000 | F27: =SUBTOTAL(109,収益性分析!$F$24:$F$26) -> 42,600,000
B29: セグメントごとの顧客利益 | C29: =C20-C27 -> -¥1,050,000 | D29: =D20-D27 -> -¥4,050,000 | E29: =E20-E27 -> ¥10,500,000 | F29: =F20-収益性分析!$F$27 -> ¥5,400,000
B30: 重み付け | C30: =MAX(0,MIN(1,C29/$F$29)) -> 0.0% | D30: =MAX(0,MIN(1,D29/$F$29)) -> 0.0% | E30: 100.0% | F30: =SUM(収益性分析!$C30:$E30) -> 100.0%
B32: 指標の概要
B33: 獲得顧客ごとの平均コスト | C33: =C24/C8 -> ¥52,500 | D33: =D24/D8 -> ¥30,000 | E33: =E24/E8 -> ¥58,750
B34: 解約顧客ごとの平均コスト | C34: =-C26/C9 -> ¥80,000 | D34: =-D26/D9 -> ¥95,000 | E34: =-E26/E9 -> ¥70,000
B35: 現在の顧客ごとの平均マーケティング コスト | C35: =C25/収益性分析!$C$10 -> ¥25,000 | D35: =D25/収益性分析!$D$10 -> ¥12,500 | E35: =E25/収益性分析!$E$10 -> ¥27,500
B36: 顧客ごとの平均損益 | C36: =C29/収益性分析!$C$10 -> -¥5,833 | D36: =D29/収益性分析!$D$10 -> -¥13,500 | E36: =E29/収益性分析!$E$10 -> ¥35,000

Sheet 指標の概要のグラフ
B2: 顧客ごとの指標の概要
B3: =ReportDate -> 2013.1.13 | R3: 会社名
